bitfinex/quotes_SOLUSD_20250622
["timestamp","ask_amount","ask_price","bid_price","bid_amount"]
[1750550402395,18.64964886,135.68,135.49,12.8476]
[1750550403090,26.08564886,135.69,135.6,10.0]
[1750550403286,26.08564886,135.69,135.61,10.0]
[1750550403620,26.08564886,135.69,135.6,10.0]
[1750550403785,26.08564886,135.69,135.61,10.0]
[1750550404671,26.08564886,135.69,135.6,10.0]
[1750550404878,26.08564886,135.69,135.58,10.0]
[1750550405388,26.08564886,135.69,135.61,10.0]
[1750550405389,7.436,135.69,135.61,10.0]
[1750550405598,7.436,135.69,135.62,10.0]
[1750550405785,18.65547688,135.75,135.72,10.0]
[1750550405987,18.64964886,135.74,135.73,10.0]
[1750550406178,13.0953,135.79,135.75,10.0]
[1750550406384,13.0953,135.79,135.76,10.0]
[1750550406688,14.28464,135.84,135.78,10.0]
[1750550406887,4.882695,135.85,135.8,10.0]
[1750550407195,4.882695,135.85,135.84,10.0]
[1750550407693,4.882695,135.85,135.83,10.0]
[1750550407894,4.882695,135.85,135.74,12.2713]
[1750550407895,4.882695,135.85,135.78,10.0]
[1750550408093,4.882695,135.85,135.76,15.15605488]
[1750550408398,1.491995,135.85,135.84,10.0]
[1750550408580,1.5798617,135.88,135.87,10.0]
[1750550408779,1.5798617,135.88,135.85,10.0]
[1750550408978,1.5798617,135.88,135.87,10.0]
[1750550409384,1.5798617,135.88,135.81,10.4244]
[1750550409385,8.74780454,135.99,135.94,10.0]
[1750550409587,8.74780454,135.99,135.93,10.0]
[1750550409800,5.14478906,136.06,135.94,10.0]
[1750550409980,18.00676171,136.06,135.95,15.14891634]
[1750550410178,10.99661579,136.06,135.98,10.0]
[1750550410475,4.82903902,136.07,135.96,10.0]
[1750550410676,9.97368808,136.07,135.95,10.0]
[1750550410891,9.97368808,136.07,135.96,10.0]
[1750550411131,22.83471549,136.07,135.93,5.14937158]
[1750550411403,5.3646666,136.06,135.89,5.15087626]
[1750550411593,68.31431546,136.05,135.88,5.15160028]
[1750550411917,18.64964886,136.01,135.82,10.0]
[1750550412117,18.64964886,135.97,135.79,15.15469995]
[1750550412401,18.64964886,135.92,135.74,10.0]
[1750550412610,24.01431546,135.92,135.78,10.0]
[1750550412791,18.64964886,135.92,135.79,10.0]
[1750550412984,30.72014872,135.94,135.76,10.0]
[1750550413291,5.3646666,135.96,135.84,10.0]
[1750550413500,18.64964886,135.95,135.83,10.0]
[1750550413702,18.64964886,135.95,135.82,10.0]
[1750550414003,5.14895182,135.95,135.83,5.15350069]
[1750550414179,5.14895182,135.95,135.88,10.0]
[1750550414484,5.14895182,135.95,135.84,10.0]
[1750550414685,5.14895182,135.95,135.87,10.0]
[1750550414894,5.14895182,135.95,135.88,10.0]
[1750550415094,29.16287966,135.97,135.88,10.0]
[1750550415307,29.16287966,135.97,135.89,10.0]
[1750550415308,23.79821306,135.97,135.89,10.0]
[1750550415511,5.3646666,136.0,135.93,10.0]
[1750550415808,5.14626703,136.03,135.96,10.0]
[1750550415984,5.14626703,136.03,135.95,10.0]
[1750550416310,8.76248901,136.04,135.98,10.0]
[1750550416519,4.82903902,136.07,135.99,10.0]
[1750550416677,4.82903902,136.07,136.0,10.0]
[1750550416882,4.82903902,136.07,136.01,10.0]
[1750550417222,4.82903902,136.07,136.02,10.0]
[1750550417381,4.82903902,136.07,136.01,10.0]
[1750550417583,4.82903902,136.07,136.02,10.0]
[1750550417790,4.82903902,136.07,136.03,10.0]
[1750550417988,11.01779035,136.15,136.09,10.0]
[1750550417989,1.5798617,136.15,136.09,10.0]
[1750550418207,6.72142864,136.15,136.08,10.0]
[1750550418415,18.64964886,136.14,136.06,10.0]
[1750550418648,18.64964886,136.14,136.01,10.0]
[1750550418796,18.64964886,136.14,135.99,10.0]
[1750550418995,18.64964886,136.14,136.03,10.0]
[1750550419390,18.64964886,136.14,136.05,10.0]
[1750550419707,18.64964886,136.14,135.99,5.14727893]
[1750550419708,18.64964886,136.14,136.06,10.0]
[1750550420092,5.14214353,136.13,136.05,10.0]
[1750550420294,5.14214353,136.13,136.06,10.0]
[1750550420608,5.14214353,136.13,136.07,10.0]
[1750550421115,18.64964886,136.12,136.06,10.0]
[1750550421494,5.14214353,136.13,136.07,10.0]
[1750550421994,5.14214353,136.13,136.06,10.0]
[1750550422186,20.22951056,136.15,136.02,5.14630137]
[1750550422187,36.64582925,136.14,136.02,10.0]
[1750550422606,36.64582925,136.14,135.99,10.0]
[1750550423022,36.64582925,136.14,136.01,10.0]
[1750550423204,62.35465839,136.14,136.04,10.0]
[1750550423420,36.64582925,136.14,136.04,10.0]
[1750550423621,5.14176582,136.14,136.11,10.0]
[1750550424011,5.14176582,136.14,136.09,10.0]
[1750550424632,6.72126424,136.15,136.11,10.0]
[1750550424808,1.5798617,136.15,136.12,10.0]
[1750550425136,1.5798617,136.15,136.14,10.0]
[1750550426933,1.5798617,136.15,136.13,10.0]
[1750550427110,1.5798617,136.15,136.12,10.0]
[1750550427310,1.5798617,136.15,136.13,10.0]
[1750550427730,1.5798617,136.15,136.14,10.0]
[1750550428036,6.72130288,136.15,136.12,10.0]
[1750550428331,6.72124987,136.15,136.14,10.0]
[1750550428525,6.72124987,136.15,136.11,10.0]
[1750550428733,18.64964886,136.14,136.07,10.0]
[1750550429428,18.64964886,136.14,135.95,12.381]
[1750550429429,18.64964886,136.14,136.08,10.0]
[1750550429630,19.5747203,136.15,136.09,10.0]
[1750550429838,6.72124987,136.15,136.1,10.0]
[1750550430140,6.72124987,136.15,136.14,10.0]
[1750550430141,1.5798617,136.15,136.14,10.0]
[1750550430338,6.72139353,136.15,136.11,10.0]
[1750550430919,18.64964886,136.14,136.06,10.0]
[1750550431134,18.64964886,136.14,136.05,10.0]
[1750550431433,6.72139353,136.15,136.08,10.0]
[1750550431632,6.72139353,136.15,136.1,10.0]
[1750550431937,18.64964886,136.14,136.06,10.0]
[1750550432105,18.64964886,136.14,136.04,10.0]
[1750550432311,18.64964886,136.12,136.05,10.0]
[1750550432531,18.64964886,136.12,136.06,10.0]
[1750550432835,18.64964886,136.12,136.05,10.0]
[1750550433136,18.64964886,136.12,136.04,10.0]
[1750550433319,18.64964886,136.12,136.02,10.0]
[1750550433517,18.64964886,136.12,136.0,10.0]
[1750550433714,18.64964886,136.12,136.02,10.0]
[1750550433910,18.64964886,136.12,136.01,10.0]
[1750550434117,18.64964886,136.12,135.95,10.0]
[1750550434319,18.64964886,136.1,135.98,10.0]
[1750550434525,18.64964886,136.1,135.99,10.0]
[1750550434932,18.64964886,136.1,135.98,10.0]
[1750550435233,18.64964886,136.1,135.97,10.0]
[1750550435440,18.64964886,136.1,135.99,10.0]
[1750550435826,18.64964886,136.1,136.01,10.0]
[1750550436142,18.64964886,136.1,136.03,10.0]
[1750550436509,5.14365493,136.09,136.03,10.0]
[1750550436820,18.64964886,136.08,136.03,10.0]
[1750550437022,18.64964886,136.08,136.0,10.0]
[1750550437428,18.64964886,136.06,135.95,10.0]
[1750550437628,18.64964886,136.06,135.98,10.0]
[1750550437828,18.64964886,136.06,135.99,10.0]
[1750550438025,43.72106693,136.09,135.94,5.14931593]
[1750550438026,18.64964886,136.08,136.01,10.0]
[1750550438749,18.64964886,136.06,136.01,10.0]
[1750550438945,5.14289912,136.11,136.03,10.0]
[1750550439248,18.64964886,136.1,136.03,10.0]
[1750550439444,18.64964886,136.1,136.05,10.0]
[1750550439828,12.85673902,136.12,136.01,5.14665585]
[1750550439829,5.14256497,136.12,136.08,10.0]
[1750550440031,5.14208778,136.14,136.08,10.0]
[1750550440340,6.72139063,136.15,136.1,10.0]
[1750550440849,6.72139063,136.15,136.09,10.0]
[1750550441041,1.5798617,136.15,136.1,10.0]
[1750550441239,1.5798617,136.15,136.03,12.7997]
[1750550441240,1.5798617,136.15,136.12,10.0]
[1750550441636,6.72130673,136.15,136.1,10.0]
[1750550442138,6.72130673,136.15,136.08,10.0]
[1750550442355,1.5798617,136.15,136.1,10.0]
[1750550442527,1.5798617,136.15,136.12,10.0]
[1750550443033,1.5798617,136.15,136.14,10.0]
[1750550443420,1.5798617,136.15,136.11,10.0]
[1750550443625,1.5798617,136.15,136.13,10.0]
[1750550443843,1.5798617,136.15,136.11,10.0]
[1750550444256,1.5798617,136.15,136.14,10.0]
[1750550447346,1.5798617,136.15,136.14,15.14176582]
[1750550447844,5.13723763,136.26,136.2,10.0]
[1750550448247,5.13723763,136.26,136.21,10.0]
[1750550448455,3.81252536,136.26,136.25,10.0]
[1750550448758,8.2822354,136.28,136.16,12.5023]
[1750550448759,10.08450463,136.29,136.24,10.0]
[1750550448941,10.08450463,136.29,136.16,12.5023]
[1750550448942,26.0,136.25,136.16,10.0]
[1750550449120,31.30912161,136.24,136.18,10.0]
[1750550449324,5.30912161,136.24,136.21,10.0]
[1750550449628,18.64964886,136.22,136.15,10.0]
[1750550449820,5.33974614,136.21,136.13,10.0]
[1750550450024,5.33974614,136.2,136.14,10.0]
[1750550450330,26.0,136.2,136.13,10.0]
[1750550450527,26.0,136.16,136.11,10.0]
[1750550450840,5.33974614,136.15,136.11,10.0]
[1750550451161,5.33974614,136.14,136.07,10.0]
[1750550451352,5.14139088,136.15,136.03,12.86460148]
[1750550451353,5.33974614,136.13,136.09,10.0]
[1750550451664,5.33974614,136.12,136.06,10.0]
[1750550451860,5.33974614,136.11,136.05,10.0]
[1750550452026,5.33974614,136.1,136.06,10.0]
[1750550452221,5.33974614,136.09,136.04,10.0]
[1750550452437,5.33974614,136.08,136.07,10.0]
[1750550452961,5.33974614,136.08,136.07,15.14441096]
[1750550453547,5.33974614,136.08,136.03,10.0]
[1750550453733,5.33974614,136.07,136.02,10.0]
[1750550453941,5.14404005,136.08,136.03,10.0]
[1750550453942,5.33974614,136.06,136.03,10.0]
[1750550454237,5.33974614,136.05,136.03,10.0]
[1750550454454,5.33974614,136.05,135.95,29.08528029]
[1750550454455,5.33974614,136.04,136.02,10.0]
[1750550454650,5.33974614,136.03,136.02,10.0]
[1750550455767,10.48567931,136.03,135.95,10.0]
[1750550456068,10.48567931,136.03,135.97,10.0]
[1750550456069,18.64964886,136.01,135.97,10.0]
[1750550456249,5.33974614,136.0,135.94,10.0]
[1750550456436,5.33974614,135.99,135.95,10.0]
[1750550456638,5.33974614,135.98,135.93,10.0]
[1750550456861,26.0,135.95,135.92,10.0]
[1750550457165,5.33974614,135.94,135.92,10.0]
[1750550457371,5.33974614,135.93,135.89,10.0]
[1750550457572,26.0,135.89,135.84,10.0]
[1750550457738,5.33974614,135.88,135.82,15.15380607]
[1750550457942,5.33974614,135.87,135.85,10.0]
[1750550458151,5.33974614,135.86,135.81,10.0]
[1750550458356,5.33974614,135.85,135.84,10.0]
[1750550458852,5.33974614,135.85,135.84,15.15312131]
[1750550459056,6.63640202,135.93,135.9,10.0]
[1750550459238,5.42046751,135.92,135.86,10.0]
[1750550459437,5.42046751,135.91,135.89,10.0]
[1750550459664,5.42046751,135.9,135.87,10.0]
[1750550459868,5.42046751,135.89,135.88,10.0]
[1750550460879,6.63640202,135.99,135.98,10.0]
[1750550461071,14.81227454,136.01,135.98,10.0]
[1750550461258,6.63640202,136.03,136.01,10.0]
[1750550461461,3.0703,136.07,136.06,10.0]
[1750550461768,6.63640202,136.11,136.06,10.0]
[1750550461955,6.63640202,136.16,136.11,10.0]
[1750550462157,11.77672333,136.18,136.11,10.0]
[1750550462373,6.63640202,136.18,136.12,10.0]
[1750550462564,11.77641227,136.19,136.08,10.0]
[1750550462774,6.63640202,136.13,136.01,10.0]
[1750550463081,31.14404345,136.08,135.98,10.0]
[1750550463388,26.0,136.04,136.0,10.0]
[1750550463552,26.0,136.06,136.01,10.0]
[1750550463748,6.63640202,136.14,136.06,10.0]
[1750550463948,6.63640202,136.16,136.06,10.0]
[1750550464170,6.63640202,136.15,136.11,10.0]
[1750550464385,3.0703,136.17,136.1,10.0]
[1750550464681,3.0703,136.17,136.02,26.0]
[1750550464682,6.63640202,136.23,136.15,10.0]
[1750550464991,3.0703,136.25,136.07,18.64964886]
[1750550464992,9.70670202,136.25,136.17,10.0]
[1750550465277,26.0,136.21,136.16,10.0]
[1750550465479,18.64964886,136.23,136.13,10.0]
[1750550465682,18.64964886,136.23,136.12,10.0]
[1750550465870,18.64964886,136.23,136.15,10.0]
[1750550466060,5.13812415,136.24,136.16,10.0]
[1750550466260,8.20792849,136.25,136.17,10.0]
[1750550466469,8.20792849,136.25,136.18,10.0]
[1750550466664,8.20792849,136.25,136.16,10.0]
[1750550466665,26.0,136.22,136.16,10.0]
[1750550466856,26.0,136.22,136.17,10.0]
[1750550467057,5.1389587,136.22,136.17,10.0]
[1750550467282,5.1389587,136.22,136.14,10.0]
[1750550467579,26.0,136.21,136.17,10.0]
[1750550467781,26.0,136.21,136.14,10.0]
[1750550467951,5.1389587,136.22,136.12,10.0]
[1750550467952,26.0,136.17,136.12,10.0]
[1750550468156,26.0,136.17,136.13,10.0]
[1750550468358,18.64964886,136.16,136.09,10.0]
[1750550468557,26.0,136.17,136.11,10.0]
[1750550468856,26.0,136.17,136.12,10.0]
[1750550469062,18.64964886,136.16,136.08,10.0]
[1750550469272,18.64964886,136.16,136.11,10.0]
[1750550469782,18.64964886,136.16,136.07,10.0]
[1750550469960,18.64964886,136.16,136.1,10.0]
[1750550470290,18.64964886,136.16,136.09,10.0]
[1750550470486,18.64964886,136.12,136.06,10.0]
[1750550470687,26.0,136.09,136.01,10.0]
[1750550470890,26.0,136.05,135.97,10.0]
[1750550471242,26.0,136.05,136.0,10.0]
[1750550471499,26.0,136.01,135.97,10.0]
[1750550471796,26.0,136.01,135.98,10.0]
[1750550471981,11.78012869,136.09,135.98,10.0]
[1750550472188,26.0,136.06,136.02,10.0]
[1750550472496,26.0,136.06,135.94,18.02264979]
[1750550472497,26.0,136.06,136.01,10.0]
[1750550472683,26.0,136.06,136.02,10.0]
[1750550473767,26.0,136.08,136.02,15.14623083]
[1750550473970,6.63640202,136.16,136.07,10.0]
[1750550474178,5.14063303,136.17,136.05,10.0]
[1750550474397,5.14063303,136.17,135.95,10.0]
[1750550474398,26.0,136.09,136.03,10.0]
[1750550474598,26.0,136.09,135.99,10.0]
[1750550474599,26.0,136.05,135.99,10.0]
[1750550474789,26.0,136.05,135.97,10.0]
[1750550474996,26.0,136.01,135.95,10.0]
[1750550475192,26.0,136.01,135.96,10.0]
[1750550475400,29.3733,136.06,136.01,10.0]
[1750550475599,18.64964886,136.05,135.98,10.0]
[1750550475789,18.64964886,136.05,135.97,10.0]
[1750550476298,18.64964886,136.01,135.94,15.14924299]
[1750550476504,5.4186795,136.05,135.95,10.0]
[1750550476683,3.3733,136.06,136.01,10.0]
[1750550477000,5.14289912,136.11,135.99,10.0]
[1750550477225,5.14289912,136.11,135.94,18.02263431]
[1750550477226,12.5101,136.13,136.04,10.0]
[1750550477383,18.64964886,136.11,136.01,10.0]
[1750550477579,18.64964886,136.07,135.98,10.0]
[1750550477913,26.0,136.04,135.95,15.14864391]
[1750550478115,26.0,136.0,135.94,10.0]
[1750550478405,26.0,136.0,135.86,47.66]
[1750550478406,18.64964886,135.99,135.92,10.0]
[1750550478611,18.64964886,135.99,135.94,10.0]
[1750550478901,3.3733,136.01,135.94,10.0]
[1750550479104,5.41667996,136.11,135.99,10.0]
[1750550479399,5.41667996,136.11,135.91,62.67627418]
[1750550479400,18.64964886,136.08,135.96,10.0]
[1750550479577,44.64964886,136.05,135.98,10.0]
[1750550479774,44.64964886,136.05,135.96,10.0]
[1750550480716,26.0,136.0,135.93,10.0]
[1750550480888,18.64964886,135.99,135.93,10.0]
[1750550481902,18.64964886,136.02,135.96,10.0]
[1750550482075,26.0,136.01,135.96,10.0]
[1750550482281,18.64964886,136.03,135.97,10.0]
[1750550482506,26.0,136.0,135.94,10.0]
[1750550482687,18.64964886,135.99,135.91,15.15024469]
[1750550482894,18.64964886,135.99,135.91,5.15024469]
[1750550483111,18.64964886,135.99,135.93,10.0]
[1750550483317,18.64964886,135.99,135.9,15.15082603]
[1750550483603,26.0,136.0,135.89,5.15098713]
[1750550483604,26.0,135.94,135.89,5.15098713]
[1750550483813,26.0,135.94,135.89,10.0]
[1750550483989,26.0,135.94,135.85,10.0]
[1750550484190,26.0,135.95,135.88,10.0]
[1750550484384,26.0,135.95,135.84,15.15308304]
[1750550484580,3.3733,135.94,135.82,10.0]
[1750550484785,3.3733,135.94,135.85,10.0]
[1750550484986,3.3733,135.94,135.82,5.15382948]
[1750550484987,3.3733,135.94,135.82,10.0]
[1750550485200,3.3733,135.94,135.81,10.0]
[1750550485499,26.0,135.9,135.81,15.15402239]
[1750550485692,18.64964886,135.89,135.8,5.1546278]
[1750550486007,26.0,135.86,135.79,10.0]
[1750550486254,18.02398292,135.93,135.83,10.0]
[1750550486400,26.0,135.89,135.84,10.0]
[1750550487321,31.15151924,135.89,135.81,15.15413686]
[1750550487490,18.64964886,135.88,135.79,10.0]
[1750550487689,18.64964886,135.88,135.82,10.0]
[1750550488106,18.64964886,135.88,135.79,10.0]
[1750550488307,18.64964886,135.88,135.82,10.0]
[1750550488701,26.0,135.91,135.83,10.0]
[1750550489017,18.64964886,135.91,135.85,10.0]
[1750550489216,26.0,135.9,135.86,10.0]
[1750550489431,26.0,135.9,135.84,10.0]
[1750550489784,18.64964886,135.89,135.84,10.0]
[1750550489984,26.0,135.86,135.8,10.0]
[1750550490212,18.64964886,135.85,135.78,10.0]
[1750550490400,26.0,135.86,135.81,10.0]
[1750550490596,26.0,135.85,135.81,10.0]
[1750550492825,3.3733,135.94,135.89,10.0]
[1750550493027,29.3733,135.94,135.89,10.0]
[1750550493193,3.3733,135.94,135.93,10.0]
[1750550493530,8.14958381,135.99,135.93,10.0]
[1750550493693,26.0,135.96,135.9,10.0]
[1750550493889,13.29703674,135.99,135.89,10.0]
[1750550494092,18.64964886,135.91,135.85,10.0]
[1750550494393,18.64964886,135.91,135.82,15.15388013]
[1750550494594,18.64964886,135.91,135.86,10.0]
[1750550494595,23.80020815,135.91,135.86,10.0]
[1750550495119,23.80020815,135.91,135.84,10.0]
[1750550495300,26.0,135.88,135.83,10.0]
[1750550495499,18.64964886,135.87,135.82,10.0]
[1750550495900,18.64964886,135.87,135.83,10.0]
[1750550496120,18.64964886,135.87,135.79,10.0]
[1750550496319,18.64964886,135.87,135.82,10.0]
[1750550497000,26.0,135.84,135.79,10.0]
[1750550497200,26.0,135.84,135.8,10.0]
[1750550497821,18.64964886,135.85,135.78,10.0]
[1750550498030,26.0,135.82,135.76,15.15585]
[1750550498226,18.64964886,135.81,135.74,15.15661719]
[1750550498415,18.64964886,135.81,135.76,10.0]
[1750550498611,26.0,135.84,135.77,10.0]
[1750550498812,26.0,135.8,135.77,10.0]
[1750550499131,26.0,135.8,135.74,10.0]
[1750550499424,18.64964886,135.79,135.74,10.0]
[1750550499625,18.64964886,135.79,135.73,10.0]
[1750550499799,18.64964886,135.79,135.74,10.0]
[1750550500228,18.64964886,135.75,135.69,10.0]
[1750550500430,26.0,135.76,135.69,15.15876316]
[1750550500732,18.64964886,135.75,135.68,15.15915007]
[1750550500903,18.64964886,135.75,135.7,10.0]
[1750550501105,23.80650435,135.75,135.65,10.0]
[1750550501306,5.15685549,135.75,135.67,10.0]
[1750550501635,26.0,135.71,135.68,10.0]
[1750550502527,5.38171413,135.77,135.69,10.0]
[1750550502733,26.0,135.74,135.69,10.0]
[1750550502918,26.0,135.74,135.71,10.0]
[1750550504649,3.182,135.78,135.74,10.0]
[1750550504935,3.182,135.78,135.75,10.0]
[1750550505524,2.682,135.78,135.75,10.0]
[1750550505741,2.682,135.78,135.74,10.0]
[1750550506043,2.682,135.78,135.76,10.0]
[1750550506412,5.15301182,135.85,135.77,10.0]
[1750550506607,26.0,135.8,135.77,10.0]
[1750550506844,26.0,135.8,135.76,5.15606413]
[1750550506845,18.64964886,135.85,135.78,10.0]
[1750550507013,18.64964886,135.85,135.76,5.15606413]
[1750550507014,17.80849275,135.86,135.79,10.0]
[1750550507217,18.64964886,135.85,135.79,10.0]
[1750550507726,5.15123493,135.89,135.81,10.0]
[1750550507924,18.64964886,135.88,135.82,10.0]
[1750550508136,26.0,135.85,135.82,10.0]
[1750550509615,26.0,135.81,135.76,10.0]
[1750550509826,26.0,135.77,135.72,10.0]
[1750550510021,26.0,135.77,135.74,10.0]
[1750550511129,26.0,135.77,135.72,10.0]
[1750550511444,44.64964886,135.79,135.74,10.0]
[1750550511619,44.64964886,135.79,135.75,10.0]
[1750550512920,49.80472765,135.79,135.75,10.0]
[1750550513444,5.15350069,135.83,135.76,10.0]
[1750550513628,9.83480202,135.89,135.79,10.0]
[1750550513629,12.88039659,135.87,135.79,10.0]
[1750550513942,26.0,135.84,135.79,10.0]
[1750550514118,3.1984,135.89,135.8,10.0]
[1750550514119,5.15160435,135.88,135.8,10.0]
[1750550514531,18.64964886,135.87,135.8,10.0]
[1750550514744,26.0,135.84,135.8,10.0]
[1750550514941,18.64964886,135.88,135.8,10.0]
[1750550515142,26.0,135.85,135.8,10.0]
[1750550515529,24.03792057,135.88,135.83,10.0]
[1750550515845,5.39476286,135.92,135.89,10.0]
[1750550516053,3.80668848,135.92,135.87,10.0]
[1750550516346,3.1984,135.95,135.89,10.0]
[1750550516563,5.1478611,135.98,135.93,10.0]
[1750550516722,5.1478611,135.98,135.92,10.0]
[1750550516922,26.0,135.95,135.87,10.0]
[1750550517123,26.0,135.95,135.85,10.0]
[1750550517345,18.01740073,135.98,135.82,15.15385643]
[1750550517346,18.64964886,135.89,135.82,15.15385643]
[1750550517546,26.0,135.86,135.81,10.0]
[1750550517748,18.64964886,135.85,135.82,10.0]
[1750550518059,18.64964886,135.85,135.75,12.8909376]
[1750550518060,18.64964886,135.85,135.77,10.0]
[1750550518348,18.64964886,135.85,135.72,12.8937909]
[1750550518349,18.64964886,135.85,135.76,10.0]
[1750550518520,18.64964886,135.81,135.75,10.0]
[1750550518721,18.64964886,135.79,135.74,10.0]
[1750550518925,18.64964886,135.79,135.76,10.0]
[1750550519234,26.0,135.77,135.71,10.0]
[1750550519429,18.64964886,135.76,135.72,10.0]
[1750550519638,18.64964886,135.76,135.68,15.15918969]
[1750550519946,18.64964886,135.76,135.68,10.0]
[1750550520249,18.64964886,135.72,135.66,15.15961584]
[1750550520429,18.64964886,135.72,135.65,10.0]
[1750550520745,26.0,135.73,135.7,10.0]
[1750550521130,5.40203219,135.74,135.73,10.0]
[1750550521332,5.41870778,135.81,135.78,10.0]
[1750550521519,24.06835664,135.82,135.76,10.0]
[1750550521724,26.0,135.79,135.75,10.0]
[1750550521955,24.06835664,135.81,135.75,10.0]
[1750550522251,26.0,135.78,135.76,10.0]
[1750550522621,44.64964886,135.77,135.69,10.0]
[1750550522829,5.41870778,135.76,135.75,10.0]
[1750550523152,37.7914413,135.79,135.65,10.0]
[1750550523153,5.41870778,135.78,135.76,10.0]
[1750550523445,9.76150202,135.83,135.79,10.0]
[1750550523646,5.4299717,135.87,135.81,10.0]
[1750550523854,31.4299717,135.86,135.83,10.0]
[1750550524055,26.0,135.82,135.77,10.0]
[1750550524224,24.07962056,135.81,135.78,10.0]
[1750550524425,26.0,135.82,135.74,5.15676108]
[1750550524426,26.0,135.82,135.8,10.0]
[1750550524627,5.4299717,135.81,135.8,10.0]
[1750550524824,5.4299717,135.81,135.77,10.0]
[1750550524825,24.07962056,135.81,135.77,10.0]
[1750550525047,24.07962056,135.81,135.75,5.15619987]
[1750550525048,5.4299717,135.8,135.79,9.0]
[1750550525826,5.4299717,135.8,135.77,9.0]
[1750550526025,5.4299717,135.8,135.78,9.0]
[1750550526272,5.4299717,135.79,135.76,9.0]
[1750550526427,5.4299717,135.83,135.8,9.0]
[1750550526631,5.4299717,135.86,135.81,9.0]
[1750550526840,5.4299717,135.85,135.82,5.15388013]
[1750550527045,5.4299717,135.87,135.84,9.0]
[1750550527348,26.0,135.83,135.8,9.0]
[1750550527555,5.4299717,135.82,135.8,9.0]
[1750550527743,5.4299717,135.81,135.79,9.0]
[1750550527945,50.10171637,135.82,135.8,9.0]
[1750550528249,5.45234566,135.81,135.8,9.0]
[1750550528449,5.45234566,135.83,135.82,9.0]
[1750550528634,31.45234566,135.87,135.82,9.0]
[1750550528841,5.45234566,135.86,135.82,9.0]
[1750550529062,5.45234566,135.85,135.8,9.0]
[1750550529259,18.64964886,135.83,135.81,9.0]
[1750550529453,5.45789329,135.82,135.81,9.0]
[1750550529677,5.45789329,135.82,135.79,5.15501384]
[1750550529678,5.45789329,135.83,135.82,9.0]
[1750550529982,6.63640202,135.87,135.84,9.0]
[1750550530267,44.64964886,135.85,135.8,9.0]
[1750550530437,18.64964886,135.81,135.8,9.0]
[1750550530637,24.10811592,135.81,135.8,9.0]
[1750550530832,24.10811592,135.81,135.76,9.0]
[1750550531069,5.45846706,135.8,135.79,9.0]
[1750550531309,5.45846706,135.8,135.74,9.0]
[1750550531310,18.64964886,135.79,135.74,9.0]
[1750550531562,18.64964886,135.78,135.77,9.0]
[1750550531859,18.64964886,135.78,135.73,9.0]
[1750550532057,24.10811592,135.77,135.76,9.0]
[1750550532261,18.64964886,135.77,135.73,9.0]
[1750550532468,5.45846706,135.77,135.74,9.0]
[1750550532653,5.45846706,135.77,135.71,14.1580015]
[1750550532848,5.45846706,135.77,135.74,9.0]
[1750550533158,24.10811592,135.78,135.75,9.0]
[1750550533376,18.64964886,135.78,135.74,9.0]
[1750550533684,18.64964886,135.7,135.65,9.0]
[1750550533965,5.45846706,135.73,135.71,9.0]
[1750550534167,26.0,135.74,135.71,9.0]
[1750550534352,18.64964886,135.75,135.72,9.0]
[1750550534556,5.45846706,135.76,135.75,9.0]